fUST/lending_fUST_20250720
["ID","MTS","AMOUNT","RATE_DAILY","PERIOD"]
[373338307,1752953440189,-151.0,0.00019489,2]
[373338309,1752953440198,-1214.488726,0.00019489,2]
[373338310,1752953440208,-1214.488726,0.00019489,2]
[373338311,1752953440217,-1214.488726,0.00019489,2]
[373338313,1752953440227,-1214.488726,0.00019489,2]
[373338314,1752953440237,-151.0,0.00019489,2]
[373338315,1752953440247,-151.0,0.00019489,2]
[373338316,1752953440256,-151.0,0.00019489,2]
[373338317,1752953440266,-151.0,0.00019489,2]
[373338318,1752953440276,-151.0,0.00019489,2]
[373338320,1752953440286,-151.0,0.00019489,2]
[373338322,1752953440295,-151.0,0.00019489,2]
[373338323,1752953440306,-173.437322,0.00019489,2]
[373338324,1752953440315,-268.466191,0.00019489,2]
[373338325,1752953440325,-268.466191,0.00019489,2]
[373338326,1752953440335,-268.466191,0.00019489,2]
[373338327,1752953440344,-268.466191,0.00019489,2]
[373338328,1752953440354,-151.0,0.00019489,2]
[373338329,1752953440364,-151.0,0.00019489,2]
[373338330,1752953440374,-151.0,0.00019489,2]
[373338331,1752953440384,-209.968262,0.00019489,2]
[373338332,1752953440395,-151.0,0.00019489,2]
[373338333,1752953440405,-151.0,0.00019489,2]
[373338334,1752953440415,-259.036827,0.00019489,2]
[373338335,1752953440425,-259.036827,0.00019489,2]
[373338336,1752953440435,-259.036827,0.00019489,2]
[373338337,1752953440446,-259.036827,0.00019489,2]
[373338338,1752953440457,-151.0,0.00019489,2]
[373338339,1752953440467,-151.0,0.00019489,2]
[373338340,1752953440476,-151.0,0.00019489,2]
[373338341,1752953440486,-161.418785,0.00019489,2]
[373338342,1752953440495,-245.530943,0.00019489,2]
[373338344,1752953440505,-245.530943,0.00019489,2]
[373338346,1752953440515,-245.530943,0.00019489,2]
[373338348,1752953440525,-245.530943,0.00019489,2]
[373338350,1752953440534,-151.0,0.00019489,2]
[373338351,1752953440544,-151.0,0.00019489,2]
[373338352,1752953440673,-151.0,0.00019489,2]
[373338353,1752953440684,-151.0,0.00019489,2]
[373338354,1752953440694,-124332.83828679,0.0001949,2]
[373338355,1752953440704,-239.836,0.0001949,2]
[373338356,1752953440713,-180.879651,0.0001949,2]
[373338357,1752953440723,-1214.488726,0.0001949,2]
[373338358,1752953440733,-1214.488726,0.0001949,2]
[373338359,1752953440742,-151.0,0.0001949,2]
[373338360,1752953440752,-151.0,0.0001949,2]
[373338361,1752953440761,-151.0,0.0001949,2]
[373338362,1752953440771,-268.466191,0.0001949,2]
[373338363,1752953440782,-268.466191,0.0001949,2]
[373338364,1752953440791,-151.0,0.0001949,2]
[373338365,1752953440800,-151.0,0.0001949,2]
[373338366,1752953440810,-259.036827,0.0001949,2]
[373338367,1752953440821,-259.036827,0.0001949,2]
[373338368,1752953440830,-151.0,0.0001949,2]
[373338369,1752953440840,-245.530943,0.0001949,2]
[373338370,1752953440850,-245.530943,0.0001949,2]
[373338371,1752953440861,-151.0,0.0001949,2]
[373338372,1752953440872,-228.612924,0.0001949,2]
[373338373,1752953440883,-978.10022494,0.00019493,2]
[373338374,1752953440892,-155.1266088,0.000195,2]
[373338375,1752953440904,-429.2412091,0.00019562,2]
[373338376,1752953440914,-577.1515091,0.00019562,2]
[373338377,1752953440926,-178.1115364,0.00019562,2]
[373338378,1752953440935,-178.1115364,0.00019562,2]
[373338379,1752953440945,-577.1515091,0.00019562,2]
[373338380,1752953440955,-178.1115364,0.00019562,2]
[373338381,1752953440967,-577.1515091,0.00019562,2]
[373338382,1752953440978,-577.1515091,0.00019562,2]
[373338383,1752953440989,-178.1115364,0.00019562,2]
[373338384,1752953440998,-577.1515091,0.00019562,2]
[373338385,1752953441008,-178.1115364,0.00019562,2]
[373338386,1752953441018,-577.1515091,0.00019562,2]
[373338387,1752953441029,-178.1115364,0.00019562,2]
[373338388,1752953441039,-528.15372949,0.00019574,2]
[373338389,1752953441048,-1301.31,0.00019577,2]
[373338390,1752953441058,-460.0,0.00019577,2]
[373338391,1752953441068,-250.38,0.00019577,2]
[373338392,1752953441077,-460.0,0.00019578,2]
[373338393,1752953441086,-1276.92,0.00019578,2]
[373338394,1752953441095,-460.0,0.00019578,2]
[373338395,1752953441105,-460.0,0.00019578,2]
[373338396,1752953441114,-460.0,0.00019578,2]
[373338397,1752953441123,-1042.06,0.00019578,2]
[373338398,1752953441133,-460.0,0.00019578,2]
[373338399,1752953441142,-714.61,0.00019578,2]
[373338400,1752953441151,-460.0,0.00019578,2]
[373338401,1752953441160,-460.0,0.00019578,2]
[373338402,1752953441171,-531.1997059,0.00019578,2]
[373338403,1752953441180,-329.86967007,0.00019578,2]
[373338404,1752953441189,-314.63,0.00019578,2]
[373338405,1752953441198,-460.0,0.00019578,2]
[373338406,1752953441207,-460.0,0.00019578,2]
[373338407,1752953441217,-245.0,0.00019579,2]
[373338408,1752953441226,-500.0,0.00019579,2]
[373338409,1752953441235,-151.0,0.00019579,2]
[373338410,1752953441244,-151.0,0.00019579,2]
[373338411,1752953441253,-247.18468876,0.00019579,2]
[373338412,1752953441262,-151.0,0.00019579,2]
[373338413,1752953441271,-219.34497079,0.00019579,2]
[373338414,1752953441283,-151.0,0.00019579,2]
[373338415,1752953441292,-479.16,0.00019579,2]
[373338416,1752953441302,-460.0,0.00019579,2]
[373338417,1752953441311,-151.0,0.00019579,2]
[373338418,1752953441320,-460.0,0.00019579,2]
[373338419,1752953441329,-460.0,0.00019579,2]
[373338420,1752953441339,-259.036827,0.00019579,2]
[373338421,1752953441349,-259.036827,0.00019579,2]
[373338422,1752953441359,-515.13,0.00019579,2]
[373338423,1752953441368,-1089.01,0.00019579,2]
[373338424,1752953441378,-460.0,0.00019579,2]
[373338425,1752953441388,-151.0,0.00019579,2]
[373338426,1752953441399,-460.0,0.00019579,2]
[373338427,1752953441409,-875.04,0.00019579,2]
[373338428,1752953441419,-698.46,0.00019579,2]
[373338429,1752953441429,-245.530943,0.00019579,2]
[373338430,1752953441438,-245.530943,0.00019579,2]
[373338431,1752953441448,-460.0,0.00019579,2]
[373338432,1752953441458,-151.0,0.00019579,2]
[373338433,1752953441467,-943.64,0.00019579,2]
[373338434,1752953441477,-593.0,0.0001958,2]
[373338435,1752953441487,-505.0,0.0001958,2]
[373338436,1752953441498,-151.0,0.0001958,2]
[373338437,1752953441508,-151.0,0.0001958,2]
[373338438,1752953441519,-151.0,0.0001958,2]
[373338439,1752953441532,-1214.488726,0.00019585,2]
[373338440,1752953441542,-1214.488726,0.00019585,2]
[373338441,1752953441551,-297.102138,0.00019585,2]
[373338442,1752953441561,-151.0,0.00019585,2]
[373338443,1752953441571,-151.0,0.00019585,2]
[373338444,1752953441581,-268.466191,0.00019585,2]
[373338445,1752953441590,-268.466191,0.00019585,2]
[373338446,1752953441600,-151.0,0.00019585,2]
[373338447,1752953441611,-151.0,0.00019585,2]
[373338448,1752953441622,-259.036827,0.00019585,2]
[373338449,1752953441632,-259.036827,0.00019585,2]
[373338450,1752953441642,-245.530943,0.00019585,2]
[373338451,1752953441654,-245.530943,0.00019585,2]
[373338452,1752953441664,-151.0,0.00019585,2]
[373338453,1752953441673,-429.3901486,0.00019589,2]
[373338454,1752953441684,-429.3901486,0.00019589,2]
[373338455,1752953441695,-429.3901486,0.00019589,2]
[373338456,1752953441705,-429.3901486,0.00019589,2]
[373338457,1752953441714,-429.3901486,0.00019589,2]
[373338458,1752953441723,-429.3901486,0.00019589,2]
[373338459,1752953441734,-429.3901486,0.00019589,2]
[373338460,1752953441743,-429.3901486,0.00019589,2]
[373338461,1752953441753,-429.3901486,0.00019589,2]
[373338462,1752953441763,-429.3901486,0.00019589,2]
[373338463,1752953441775,-429.3901486,0.00019589,2]
[373338464,1752953441785,-429.3901486,0.00019589,2]
[373338465,1752953441795,-500.0,0.00019675,2]
[373338466,1752953441805,-618.61,0.00019725,2]
[373338467,1752953441818,-1545.83,0.00019725,2]
[373338468,1752953441827,-10220.13249871,0.00019753,2]
[373338469,1752953441838,-1301.31,0.00019851,2]
[373338470,1752953441847,-460.0,0.00019851,2]
[373338471,1752953441857,-597.57671776,0.00019852,2]
[373338472,1752953441868,-1276.92,0.00019852,2]
[373338473,1752953441878,-460.0,0.00019852,2]
[373338474,1752953441889,-460.0,0.00019852,2]
[373338475,1752953441899,-460.0,0.00019852,2]
[373338476,1752953441909,-1042.06,0.00019852,2]
[373338477,1752953441920,-460.0,0.00019852,2]
[373338478,1752953441930,-243.070568,0.00019852,2]
[373338479,1752953441941,-714.61,0.00019852,2]
[373338480,1752953441951,-460.0,0.00019852,2]
[373338481,1752953441961,-460.0,0.00019852,2]
[373338482,1752953441970,-460.0,0.00019852,2]
[373338483,1752953441980,-460.0,0.00019852,2]
[373338484,1752953441990,-500.0,0.00019853,2]
[373338485,1752953441999,-198.0,0.00019853,2]
[373338486,1752953442010,-198.0,0.00019853,2]
[373338487,1752953442023,-198.0,0.00019853,2]
[373338488,1752953442035,-479.16,0.00019853,2]
[373338489,1752953442045,-460.0,0.00019853,2]
[373338490,1752953442055,-151.0,0.00019853,2]
[373338491,1752953442064,-460.0,0.00019853,2]
[373338492,1752953442074,-460.0,0.00019853,2]
[373338493,1752953442084,-259.036827,0.00019853,2]
[373338494,1752953442096,-259.036827,0.00019853,2]
[373338495,1752953442106,-515.13,0.00019853,2]
[373338496,1752953442116,-1089.01,0.00019853,2]
[373338497,1752953442125,-460.0,0.00019853,2]
[373338498,1752953442135,-875.04,0.00019853,2]
[373338499,1752953442145,-698.46,0.00019853,2]
[373338500,1752953442154,-245.530943,0.00019853,2]
[373338501,1752953442164,-245.530943,0.00019853,2]
[373338502,1752953442174,-460.0,0.00019853,2]
[373338503,1752953442184,-151.0,0.00019853,2]
[373338504,1752953442194,-943.64,0.00019853,2]
[373338505,1752953442204,-593.0,0.00019854,2]
[373338506,1752953442214,-505.0,0.00019854,2]
[373338507,1752953442224,-198.0,0.00019854,2]
[373338508,1752953442234,-151.0,0.00019854,2]
[373338509,1752953442243,-1214.488726,0.00019854,2]
[373338510,1752953442253,-1214.488726,0.00019854,2]
[373338511,1752953442263,-151.0,0.00019854,2]
[373338512,1752953442273,-151.0,0.00019854,2]
[373338513,1752953442286,-268.466191,0.00019854,2]
[373338514,1752953442295,-268.466191,0.00019854,2]
[373338515,1752953442305,-151.0,0.00019854,2]
[373338516,1752953442315,-245.530943,0.00019854,2]
[373338517,1752953442324,-245.530949,0.00019854,2]
[373338518,1752953442334,-151.0,0.00019854,2]
[373338519,1752953442344,-151.0,0.00019859,2]
[373338520,1752953442353,-151.0,0.00019859,2]
[373338521,1752953442364,-268.466191,0.00019859,2]
[373338522,1752953442373,-268.466191,0.00019859,2]
[373338523,1752953442382,-151.0,0.00019859,2]
[373338524,1752953442392,-151.0,0.00019859,2]
[373338525,1752953442402,-259.036827,0.00019859,2]
[373338526,1752953442412,-259.036825,0.00019859,2]
[373338527,1752953442423,-1214.488726,0.000199,2]
[373338528,1752953442433,-1214.488726,0.000199,2]
[373338529,1752953442443,-151.0,0.000199,2]
[373338530,1752953442452,-151.0,0.000199,2]
[373338531,1752953442462,-268.466191,0.000199,2]
[373338532,1752953442473,-268.466191,0.000199,2]
[373338533,1752953442482,-151.0,0.000199,2]
[373338534,1752953442492,-7015.23066825,0.000199,2]
[373338535,1752953442501,-1000.0,0.00019929,2]
[373338536,1752953442511,-1081.53922489,0.00019956,2]
[373338537,1752953442521,-439.39428796,0.00019957,2]
[373338538,1752953442534,-800.0,0.00019968,2]
[373338539,1752953442544,-500.0,0.00019973,2]
[373338540,1752953442553,-500.0,0.00019973,2]
[373338542,1752953442563,-504.22089586,0.00019973,2]
[373338543,1752953442573,-520.37179257,0.00019973,2]
[373338544,1752953442583,-500.0,0.00019973,2]
[373338545,1752953442592,-500.0,0.00019973,2]
[373338546,1752953442602,-504.73741654,0.00019973,2]
[373338547,1752953442611,-500.0,0.00019973,2]
[373338548,1752953442621,-500.0,0.00019973,2]
[373338549,1752953442632,-618.61,0.00019999,2]
[373338550,1752953442642,-1545.83,0.00019999,2]
[373338551,1752953442653,-11230.48444009,0.0002,2]
[373338552,1752953442662,-8182.36496867,0.0002,2]
[373338553,1752953442671,-3193.95892131,0.0002,2]
[373338556,1752953442681,-362.6568148,0.0002,2]
[373338557,1752953442690,-71504.53584913,0.0002,2]
[373338558,1752953442699,-5929.79780296,0.0002,2]
[373338559,1752953442708,-71682.65200165,0.0002,2]
[373338560,1752953442718,-151.0,0.0002,2]
[373338561,1752953442727,-151.0,0.0002,2]
[373338562,1752953442737,-303.676723,0.0002,2]
[373338563,1752953442746,-303.676723,0.0002,2]
[373338564,1752953442756,-151.776609,0.0002,2]
[373338566,1752953442766,-151.0,0.0002,2]
[373338568,1752953442778,-151.0,0.0002,2]
[373338570,1752953442788,-151.0,0.0002,2]
[373338571,1752953442798,-151.0,0.0002,2]
[373338572,1752953442807,-151.0,0.0002,2]
[373338573,1752953442817,-151.0,0.0002,2]
[373338574,1752953442826,-151.0,0.0002,2]
[373338575,1752953442836,-151.0,0.0002,2]
[373338576,1752953442846,-151.0,0.0002,2]
[373338577,1752953442856,-151.0,0.0002,2]
[373338578,1752953442866,-234.576232,0.0002,2]
[373338579,1752953442876,-151.0,0.0002,2]
[373338580,1752953442887,-151.0,0.0002,2]
[373338581,1752953442898,-151.0,0.0002,2]
[373338582,1752953442908,-151.0,0.0002,2]
[373338583,1752953442917,-151.0,0.0002,2]
[373338584,1752953442926,-497.768648,0.0002,2]
[373338585,1752953442935,-497.768648,0.0002,2]
[373338587,1752953442945,-151.0,0.0002,2]
[373338588,1752953442955,-151.0,0.0002,2]
[373338590,1752953442965,-151.0,0.0002,2]
[373338591,1752953442976,-151.0,0.0002,2]
[373338592,1752953442986,-151.0,0.0002,2]
[373338593,1752953442996,-151.0,0.0002,2]
[373338594,1752953443007,-151.0,0.0002,2]
[373338595,1752953443019,-151.0,0.0002,2]
[373338596,1752953443028,-151.0,0.0002,2]
[373338597,1752953443038,-151.0,0.0002,2]
[373338598,1752953443047,-151.0,0.0002,2]
[373338599,1752953443057,-151.0,0.0002,2]
[373338600,1752953443067,-151.0,0.0002,2]
[373338601,1752953443076,-151.0,0.0002,2]
[373338602,1752953443086,-151.0,0.0002,2]
[373338603,1752953443095,-151.0,0.0002,2]
[373338604,1752953443104,-151.0,0.0002,2]
[373338605,1752953443114,-1214.488726,0.0002,2]
[373338606,1752953443123,-1214.488726,0.0002,2]
[373338607,1752953443161,-1214.488726,0.0002,2]
[373338608,1752953443171,-1214.488726,0.0002,2]
[373338609,1752953443181,-1214.488726,0.0002,2]
[373338611,1752953443190,-1214.488734,0.0002,2]
[373338613,1752953443200,-151.0,0.0002,2]
[373338615,1752953443209,-151.0,0.0002,2]
[373338617,1752953443220,-333.772377,0.0002,2]
[373338619,1752953443229,-333.772377,0.0002,2]
[373338621,1752953443239,-333.772377,0.0002,2]
[373338622,1752953443248,-333.772377,0.0002,2]
[373338623,1752953443258,-268.466191,0.0002,2]
[373338624,1752953443268,-268.466185,0.0002,2]
[373338625,1752953443278,-151.0,0.0002,2]
[373338626,1752953443287,-17671.62993046,0.00020007,3]
[373338627,1752953443297,-214.52603969,0.00020007,3]
[373338628,1752953443307,-160.0,0.00020007,3]
[373338629,1752953443317,-12612.80205064,0.00020007,3]
[373338631,1752953443326,-476.34170116,0.00020007,3]
[373338632,1752953443335,-1000.0,0.00020021,2]
[373338633,1752953443344,-500.0,0.00020021,2]
[373338634,1752953443354,-7015.23066813,0.00020107,2]
[373338635,1752953443365,-1301.31,0.00020125,2]
[373338636,1752953443374,-460.0,0.00020125,2]
[373338637,1752953443384,-1276.92,0.00020126,2]
[373338638,1752953443394,-460.0,0.00020126,2]
[373338639,1752953443404,-460.0,0.00020126,2]
[373338640,1752953443413,-460.0,0.00020126,2]
[373338641,1752953443422,-1042.06,0.00020126,2]
[373338642,1752953443432,-460.0,0.00020126,2]
[373338643,1752953443441,-714.61,0.00020126,2]
[373338644,1752953443451,-460.0,0.00020126,2]
[373338645,1752953443460,-460.0,0.00020126,2]
[373338646,1752953443469,-460.0,0.00020126,2]
[373338647,1752953443479,-460.0,0.00020126,2]
[373338648,1752953443488,-479.16,0.00020127,2]
[373338649,1752953443497,-460.0,0.00020127,2]
[373338650,1752953443507,-460.0,0.00020127,2]
[373338651,1752953443515,-460.0,0.00020127,2]
[373338652,1752953443525,-515.13,0.00020127,2]
[373338653,1752953443535,-1089.01,0.00020127,2]
[373338654,1752953443545,-460.0,0.00020127,2]
[373338655,1752953443555,-875.04,0.00020127,2]
[373338656,1752953443564,-698.46,0.00020127,2]
[373338657,1752953443573,-460.0,0.00020127,2]
[373338658,1752953443582,-943.64,0.00020127,2]
[373338659,1752953443592,-593.0,0.00020128,2]
[373338660,1752953443601,-505.0,0.00020128,2]
[373338661,1752953443611,-220.44796763,0.00020128,2]
[373338662,1752953443622,-151.0,0.00020148,2]
[373338663,1752953443631,-151.0,0.00020148,2]
[373338664,1752953443641,-151.0,0.00020148,2]
[373338665,1752953443650,-333.772377,0.00020148,2]
[373338666,1752953443660,-333.772377,0.00020148,2]
[373338667,1752953443670,-289.183986,0.00020187,2]
[373338668,1752953443679,-153.0,0.00020192,2]
[373338669,1752953443689,-153.0,0.00020192,2]
[373338670,1752953443699,-153.0,0.00020192,2]
[373338671,1752953443709,-151.0,0.00020223,2]
[373338672,1752953443719,-303.676723,0.00020223,2]
[373338673,1752953443728,-303.676723,0.00020223,2]
[373338674,1752953443737,-151.0,0.00020248,2]
[373338675,1752953443746,-151.0,0.00020248,2]
[373338676,1752953443756,-151.0,0.00020248,2]
[373338677,1752953443766,-151.0,0.00020248,2]
[373338678,1752953443778,-151.0,0.00020248,2]
[373338679,1752953443787,-151.0,0.00020248,2]
[373338680,1752953443797,-618.61,0.00020273,2]
[373338681,1752953443807,-1545.83,0.00020273,2]
[373338682,1752953443816,-7015.23066813,0.00020314,3]
[373338683,1752953443826,-387.83084799,0.00020334,2]
[373338684,1752953443836,-420.0,0.00020373,2]
[373338685,1752953443845,-577.1515091,0.00020384,2]
[373338686,1752953443855,-178.1115364,0.00020384,2]
[373338687,1752953443864,-178.1115364,0.00020384,2]
[373338688,1752953443875,-577.1515091,0.00020384,2]
[373338689,1752953443885,-577.1515091,0.00020384,2]
[373338690,1752953443895,-178.1115364,0.00020384,2]
[373338691,1752953443905,-577.1515091,0.00020384,2]
[373338692,1752953443915,-178.1115364,0.00020384,2]
[373338693,1752953443924,-178.1115364,0.00020384,2]
[373338694,1752953443933,-577.1515091,0.00020384,2]
[373338695,1752953443943,-178.1115364,0.00020384,2]
[373338696,1752953443952,-577.1515091,0.00020384,2]
[373338697,1752953443962,-178.1115364,0.00020384,2]
[373338698,1752953443971,-577.1515091,0.00020384,2]
[373338699,1752953443981,-178.1115364,0.00020384,2]
[373338700,1752953443990,-577.1515091,0.00020384,2]
[373338701,1752953443999,-178.1115364,0.00020384,2]
[373338702,1752953444009,-572.1655845,0.00020384,2]
[373338703,1752953444022,-178.1115364,0.00020384,2]
[373338704,1752953444033,-178.1115364,0.00020384,2]
[373338705,1752953444043,-178.1115364,0.00020384,2]
[373338706,1752953444052,-178.1115364,0.00020384,2]
[373338707,1752953444062,-178.1115364,0.00020384,2]
[373338708,1752953444072,-178.1115364,0.00020384,2]
[373338709,1752953444081,-178.1115364,0.00020384,2]
[373338710,1752953444092,-178.1115364,0.00020384,2]
[373338711,1752953444102,-178.1115364,0.00020384,2]
[373338712,1752953444112,-159.8125085,0.00020384,2]
[373338713,1752953444121,-175.2981775,0.00020384,2]
[373338714,1752953444130,-160.3765816,0.00020384,2]
[373338715,1752953444139,-1301.31,0.00020399,2]
[373338716,1752953444149,-460.0,0.00020399,2]
[373338717,1752953444158,-1276.92,0.000204,2]
[373338718,1752953444168,-460.0,0.000204,2]
[373338719,1752953444177,-460.0,0.000204,2]
[373338720,1752953444186,-460.0,0.000204,2]
[373338721,1752953444196,-1042.06,0.000204,2]
[373338722,1752953444205,-460.0,0.000204,2]
[373338723,1752953444215,-714.61,0.000204,2]
[373338724,1752953444225,-460.0,0.000204,2]
[373338725,1752953444234,-460.0,0.000204,2]
[373338726,1752953444243,-460.0,0.000204,2]
[373338727,1752953444253,-460.0,0.000204,2]
[373338728,1752953444263,-479.16,0.00020401,2]
[373338729,1752953444272,-460.0,0.00020401,2]
[373338730,1752953444283,-460.0,0.00020401,2]
[373338731,1752953444293,-515.13,0.00020401,2]
[373338732,1752953444302,-1089.01,0.00020401,2]
[373338733,1752953444312,-460.0,0.00020401,2]
[373338734,1752953444322,-875.04,0.00020401,2]
[373338735,1752953444332,-698.46,0.00020401,2]
[373338736,1752953444342,-460.0,0.00020401,2]
[373338737,1752953444351,-943.64,0.00020401,2]
[373338738,1752953444361,-593.0,0.00020402,2]
[373338739,1752953444370,-505.0,0.00020402,2]
[373338740,1752953444379,-151.0,0.00020403,2]
[373338741,1752953444388,-151.0,0.00020403,2]
[373338742,1752953444398,-497.768648,0.00020403,2]
[373338743,1752953444407,-497.768648,0.00020403,2]
[373338744,1752953444416,-151.0,0.00020405,2]
[373338745,1752953444435,-272.910868,0.00020405,2]
[373338746,1752953444447,-151.0,0.00020405,2]
[373338747,1752953444458,-151.0,0.00020407,2]
[373338748,1752953444468,-151.0,0.00020407,2]
[373338749,1752953444478,-151.0,0.00020407,2]
[373338750,1752953444488,-151.0,0.00020407,2]
[373338751,1752953444498,-151.0,0.00020407,2]
[373338752,1752953444508,-151.0,0.00020407,2]
[373338753,1752953444519,-178.0508326,0.00020411,2]
[373338754,1752953444530,-684.939,0.00020469,2]
[373338755,1752953444540,-9292.58942053,0.000205,2]
[373338756,1752953444551,-160.0,0.00020515,2]
[373338757,1752953444562,-193.3649171,0.00020521,2]
[373338758,1752953444572,-429.3901486,0.00020521,2]
[373338759,1752953444582,-429.3901486,0.00020521,2]
[373338760,1752953444592,-429.3901486,0.00020521,2]
[373338761,1752953444602,-429.3901486,0.00020521,2]
[373338762,1752953444612,-258.0288747,0.00020521,2]
[373338763,1752953444622,-7015.23066813,0.00020521,3]
[373338764,1752953444632,-1081.53922489,0.00020521,2]
[373338765,1752953444642,-618.61,0.00020547,2]
[373338766,1752953444653,-1545.83,0.00020547,2]
[373338767,1752953444664,-429.3901486,0.00020548,2]
[373338768,1752953444675,-4625.52679483,0.00020574,2]
[373338769,1752953444686,-1662.71,0.000206,2]
[373338770,1752953444696,-1301.31,0.00020673,2]
[373338771,1752953444706,-460.0,0.00020673,2]
[373338772,1752953444717,-1276.92,0.00020674,2]
[373338773,1752953444727,-519.84493682,0.00020674,2]
[373338774,1752953444737,-176.74352346,0.00020674,2]
[373338775,1752953444747,-460.0,0.00020674,2]
[373338776,1752953444758,-1042.06,0.00020674,2]
[373338777,1752953444768,-460.0,0.00020674,2]
[373338778,1752953444779,-714.61,0.00020674,2]
[373338779,1752953444789,-460.0,0.00020674,2]
[373338780,1752953444799,-308.319448,0.00020674,2]
[373338781,1752953444810,-460.0,0.00020674,2]
[373338782,1752953444820,-460.0,0.00020674,2]
[373338783,1752953444830,-479.16,0.00020675,2]
[373338784,1752953444843,-460.0,0.00020675,2]
[373338785,1752953444853,-515.13,0.00020675,2]
[373338786,1752953444863,-1089.01,0.00020675,2]
[373338787,1752953444874,-460.0,0.00020675,2]
[373338788,1752953444884,-875.04,0.00020675,2]
[373338789,1752953444894,-698.46,0.00020675,2]
[373338790,1752953444904,-460.0,0.00020675,2]
[373338791,1752953444914,-943.64,0.00020675,2]
[373338792,1752953444924,-593.0,0.00020676,2]
[373338793,1752953444935,-505.0,0.00020676,2]
[373338794,1752953444945,-226.665178,0.00020676,2]
[373338795,1752953444957,-151.0,0.00020676,2]
[373338796,1752953444967,-151.0,0.00020676,2]
[373338797,1752953444977,-333.772377,0.00020676,2]
[373338798,1752953444988,-333.772377,0.00020676,2]
[373338799,1752953444998,-500.0,0.0002071,2]
[373338800,1752953445008,-152.423653,0.00020722,2]
[373338801,1752953445021,-7015.23066813,0.00020728,3]
[373338802,1752953445033,-151.0,0.00020728,2]
[373338803,1752953445048,-151.0,0.00020728,2]
[373338804,1752953445062,-216.14992921,0.00020738,2]
[373338805,1752953445074,-200.0,0.00020738,2]
[373338806,1752953445085,-342.33819075,0.00020738,2]
[373338807,1752953445096,-20904.05897788,0.00020739,2]
[373338808,1752953445107,-151.0,0.00020739,2]
[373338809,1752953445117,-151.0,0.00020739,2]
[373338810,1752953445127,-151.0,0.00020739,2]
[373338811,1752953445138,-497.768648,0.00020739,2]
[373338812,1752953445148,-497.768648,0.00020739,2]
[373338813,1752953445159,-151.0,0.00020739,2]
[373338814,1752953445170,-151.0,0.00020739,2]
[373338815,1752953445179,-1705.741,0.00020769,2]
[373338816,1752953445189,-178.336,0.00020769,2]
[373338817,1752953445199,-618.61,0.00020821,2]
[373338818,1752953445209,-1545.83,0.00020821,2]
[373338819,1752953445219,-439.39428796,0.00020836,2]
[373338820,1752953445230,-1121.62,0.0002085,3]
[373338821,1752953445240,-560.8,0.0002085,3]
[373338822,1752953445250,-649.76,0.0002085,3]
[373338823,1752953445260,-487.32,0.0002085,3]
[373338824,1752953445270,-2156.0,0.00020892,2]
[373338825,1752953445281,-968.0,0.00020892,2]
[373338826,1752953445292,-387.432,0.00020892,2]
[373338827,1752953445302,-416.784,0.00020892,2]
[373338828,1752953445312,-152.423653,0.000209,3]
[373338829,1752953445323,-7015.23066813,0.00020934,4]